[Event "Titled Tuesday Blitz December 14 2021"]
[White "Pichot, Alan"]
[Black "Makarian, Rudik"]
[WhiteFideId "110973"]
[BlackFideId "44105681"]
[WhiteElo "2629"]
[BlackElo "2486"]
[Result "1/2-1/2"]
[Round "08"]
[TimeControl "180+1"]
[Date "2021.12.14"]
[WhiteClock "0:00:29"]
[BlackClock "0:00:10"]

1. e4 {[%clk 0:03:00]}  c5 {[%clk 0:02:59]} 2. Nf3 {[%clk 0:03:01]}  d6 {[%clk 0:02:59]} 3. d4 {[%clk 0:03:01]}  cxd4 {[%clk 0:03:00]} 4. Nxd4 {[%clk 0:03:02]}  Nf6 {[%clk 0:03:01]} 5. Nc3 {[%clk 0:03:03]}  a6 {[%clk 0:03:02]} 6. Bg5 {[%clk 0:03:03]}  Nbd7 {[%clk 0:03:02]} 7. Bc4 {[%clk 0:03:03]}  e6 {[%clk 0:03:02]} 8. Qd2 {[%clk 0:02:41]}  b5 {[%clk 0:02:55]} 9. Bxe6 {[%clk 0:02:40]}  fxe6 {[%clk 0:02:55]} 10. Nxe6 {[%clk 0:02:41]}  Qb6 {[%clk 0:02:20]} 11. O-O-O {[%clk 0:02:40]}  Ne5 {[%clk 0:02:11]} 12. Nxf8 {[%clk 0:02:07]}  Nc4 {[%clk 0:01:58]} 13. Nd5 {[%clk 0:01:44]}  Qc5 {[%clk 0:01:10]} 14. Qc3 {[%clk 0:01:24]}  Rxf8 {[%clk 0:00:56]} 15. Bxf6 {[%clk 0:01:24]}  gxf6 {[%clk 0:00:56]} 16. Nxf6+ {[%clk 0:01:25]}  Kd8 {[%clk 0:00:26]} 17. Nd5 {[%clk 0:01:25]}  Ra7 {[%clk 0:00:21]} 18. f3 {[%clk 0:01:22]}  Be6 {[%clk 0:00:20]} 19. b3 {[%clk 0:01:09]}  Bxd5 {[%clk 0:00:16]} 20. Rxd5 {[%clk 0:01:06]}  Qe3+ {[%clk 0:00:17]} 21. Qxe3 {[%clk 0:01:06]}  Nxe3 {[%clk 0:00:18]} 22. Rd2 {[%clk 0:01:07]}  Rd7 {[%clk 0:00:13]} 23. Re1 {[%clk 0:01:02]}  Nxg2 {[%clk 0:00:13]} 24. Rxg2 {[%clk 0:01:03]}  Rxf3 {[%clk 0:00:14]} 25. Rd1 {[%clk 0:00:56]}  Kc7 {[%clk 0:00:13]} 26. Rd3 {[%clk 0:00:54]}  Rf4 {[%clk 0:00:12]} 27. Re3 {[%clk 0:00:53]}  Re7 {[%clk 0:00:12]} 28. Rge2 {[%clk 0:00:53]}  Rh4 {[%clk 0:00:12]} 29. Kd2 {[%clk 0:00:53]}  Re5 {[%clk 0:00:13]} 30. Kd3 {[%clk 0:00:53]}  Reh5 {[%clk 0:00:12]} 31. e5 {[%clk 0:00:28]}  dxe5 {[%clk 0:00:11]} 32. Rxe5 {[%clk 0:00:26]}  Rxe5 {[%clk 0:00:09]} 33. Rxe5 {[%clk 0:00:27]}  Rxh2 {[%clk 0:00:10]} 34. Re6 {[%clk 0:00:26]}  Kb7 {[%clk 0:00:11]} 35. Kc3 {[%clk 0:00:27]}  h5 {[%clk 0:00:10]} 36. Rh6 {[%clk 0:00:27]}  h4 {[%clk 0:00:11]} 37. a4 {[%clk 0:00:27]}  bxa4 {[%clk 0:00:10]} 38. bxa4 {[%clk 0:00:28]}  h3 {[%clk 0:00:10]} 39. a5 {[%clk 0:00:27]}  Rh1 {[%clk 0:00:10]} 40. Rb6+ {[%clk 0:00:27]}  Ka7 {[%clk 0:00:09]} 41. Kb2 {[%clk 0:00:28]}  Rg1 {[%clk 0:00:07]} 42. Rh6 {[%clk 0:00:29]}  Rg3 {[%clk 0:00:08]} 43. c3 {[%clk 0:00:29]}  Kb7 {[%clk 0:00:08]} 44. Kb3 {[%clk 0:00:29]}  Ka7 {[%clk 0:00:07]} 45. Rh7+ {[%clk 0:00:29]}  Kb8 {[%clk 0:00:07]} 46. Kb4 {[%clk 0:00:29]}  Rf3 {[%clk 0:00:06]} 47. c4 {[%clk 0:00:30]}  Rg3 {[%clk 0:00:06]} 48. Kc5 {[%clk 0:00:30]}  Rg5+ {[%clk 0:00:06]} 49. Kb4 {[%clk 0:00:30]}  Rg3 {[%clk 0:00:06]} 50. c5 {[%clk 0:00:29]}  Rg4+ {[%clk 0:00:06]} 51. Kc3 {[%clk 0:00:30]}  Rg3+ {[%clk 0:00:07]} 52. Kc4 {[%clk 0:00:30]}  Rg4+ {[%clk 0:00:07]} 53. Kd5 {[%clk 0:00:29]}  Rg5+ {[%clk 0:00:07]} 54. Kd6 {[%clk 0:00:29]}  Rg6+ {[%clk 0:00:08]} 55. Kd7 {[%clk 0:00:28]}  Kb7 {[%clk 0:00:08]} 56. Rxh3 {[%clk 0:00:28]}  Rg7+ {[%clk 0:00:08]} 57. Kd6 {[%clk 0:00:29]}  Rg6+ {[%clk 0:00:08]} 58. Kd5 {[%clk 0:00:29]}  Rg5+ {[%clk 0:00:09]} 59. Kc4 {[%clk 0:00:29]}  Rg4+ {[%clk 0:00:10]} 60. Kd5 {[%clk 0:00:28]}  Rg5+ {[%clk 0:00:10]} 61. Kc4 {[%clk 0:00:29]}  Rg4+ {[%clk 0:00:10]} 62. Kd5 {[%clk 0:00:29]}  Rg5+ {[%clk 0:00:10]} 1/2-1/2


[Site "https://www.chess.com"]

[Event "Titled Tuesday Blitz December 14 2021"]
[White "Rasulov, Vugar"]
[Black "Maly, Alexey"]
[WhiteFideId "13402390"]
[BlackFideId "14103184"]
[WhiteElo "2560"]
[BlackElo "2294"]
[Result "0-1"]
[Round "08"]
[TimeControl "180+1"]
[Date "2021.12.14"]
[WhiteClock "0:00:01"]
[BlackClock "0:00:04"]

1. d4 {[%clk 0:03:00]}  d5 {[%clk 0:02:59]} 2. c4 {[%clk 0:03:01]}  dxc4 {[%clk 0:03:00]} 3. Nf3 {[%clk 0:03:00]}  Nf6 {[%clk 0:03:00]} 4. e3 {[%clk 0:03:00]}  e6 {[%clk 0:03:00]} 5. Bxc4 {[%clk 0:03:00]}  a6 {[%clk 0:03:00]} 6. O-O {[%clk 0:03:00]}  b5 {[%clk 0:03:00]} 7. Be2 {[%clk 0:02:54]}  Bb7 {[%clk 0:03:01]} 8. Ne5 {[%clk 0:02:54]}  c5 {[%clk 0:02:59]} 9. Bf3 {[%clk 0:02:53]}  Qb6 {[%clk 0:02:50]} 10. a4 {[%clk 0:02:50]}  Nc6 {[%clk 0:02:41]} 11. Nxc6 {[%clk 0:02:44]}  Bxc6 {[%clk 0:02:41]} 12. axb5 {[%clk 0:02:45]}  Qxb5 {[%clk 0:02:36]} 13. Na3 {[%clk 0:02:37]}  Qb7 {[%clk 0:02:35]} 14. Bxc6+ {[%clk 0:02:34]}  Qxc6 {[%clk 0:02:35]} 15. Nc4 {[%clk 0:02:31]}  Be7 {[%clk 0:02:32]} 16. dxc5 {[%clk 0:02:21]}  Bxc5 {[%clk 0:02:28]} 17. Ne5 {[%clk 0:02:04]}  Qb5 {[%clk 0:02:28]} 18. Qa4 {[%clk 0:02:04]}  Qxa4 {[%clk 0:02:23]} 19. Rxa4 {[%clk 0:02:05]}  O-O {[%clk 0:02:23]} 20. Bd2 {[%clk 0:02:05]}  Rfb8 {[%clk 0:02:19]} 21. b4 {[%clk 0:01:56]}  Bf8 {[%clk 0:02:13]} 22. Rfa1 {[%clk 0:01:55]}  Nd5 {[%clk 0:02:04]} 23. Nd7 {[%clk 0:01:38]}  Nb6 {[%clk 0:01:58]} 24. Nxb8 {[%clk 0:01:30]}  Nxa4 {[%clk 0:01:54]} 25. Rxa4 {[%clk 0:01:24]}  Rxb8 {[%clk 0:01:54]} 26. Kf1 {[%clk 0:01:21]}  Rb6 {[%clk 0:01:49]} 27. Ke2 {[%clk 0:01:21]}  f6 {[%clk 0:01:42]} 28. Kd3 {[%clk 0:01:22]}  Kf7 {[%clk 0:01:39]} 29. Kc4 {[%clk 0:01:22]}  Rc6+ {[%clk 0:01:34]} 30. Kb3 {[%clk 0:01:21]}  Ke8 {[%clk 0:01:28]} 31. e4 {[%clk 0:01:16]}  Kd7 {[%clk 0:01:25]} 32. Be3 {[%clk 0:01:16]}  Bd6 {[%clk 0:01:20]} 33. h3 {[%clk 0:01:15]}  Be5 {[%clk 0:01:15]} 34. Bc5 {[%clk 0:01:14]}  Bd6 {[%clk 0:01:10]} 35. Kc4 {[%clk 0:01:12]}  Be5 {[%clk 0:01:02]} 36. Ra2 {[%clk 0:01:09]}  h5 {[%clk 0:01:00]} 37. h4 {[%clk 0:01:07]}  Kc8 {[%clk 0:00:54]} 38. g3 {[%clk 0:01:00]}  Kd7 {[%clk 0:00:51]} 39. f4 {[%clk 0:00:59]}  Bd6 {[%clk 0:00:49]} 40. Ra3 {[%clk 0:00:52]}  Be7 {[%clk 0:00:41]} 41. f5 {[%clk 0:00:49]}  Ke8 {[%clk 0:00:38]} 42. Rd3 {[%clk 0:00:42]}  Bd8 {[%clk 0:00:35]} 43. g4 {[%clk 0:00:27]}  hxg4 {[%clk 0:00:33]} 44. Rg3 {[%clk 0:00:28]}  Kf7 {[%clk 0:00:32]} 45. Rxg4 {[%clk 0:00:28]}  Rc7 {[%clk 0:00:29]} 46. Rg3 {[%clk 0:00:25]}  a5 {[%clk 0:00:27]} 47. Rd3 {[%clk 0:00:12]}  Be7 {[%clk 0:00:23]} 48. Kb5 {[%clk 0:00:10]}  axb4 {[%clk 0:00:20]} 49. Bxe7 {[%clk 0:00:10]}  Rxe7 {[%clk 0:00:17]} 50. Kxb4 {[%clk 0:00:08]}  exf5 {[%clk 0:00:17]} 51. exf5 {[%clk 0:00:09]}  Re4+ {[%clk 0:00:17]} 52. Kc5 {[%clk 0:00:09]}  Re5+ {[%clk 0:00:16]} 53. Rd5 {[%clk 0:00:08]}  Re4 {[%clk 0:00:13]} 54. Rd7+ {[%clk 0:00:07]}  Kg8 {[%clk 0:00:13]} 55. Rd4 {[%clk 0:00:08]}  Re5+ {[%clk 0:00:12]} 56. Rd5 {[%clk 0:00:08]}  Re4 {[%clk 0:00:12]} 57. h5 {[%clk 0:00:05]}  Kh7 {[%clk 0:00:09]} 58. Kd6 {[%clk 0:00:06]}  Kh6 {[%clk 0:00:08]} 59. Rd2 {[%clk 0:00:05]}  Kxh5 {[%clk 0:00:08]} 60. Rg2 {[%clk 0:00:06]}  Kh6 {[%clk 0:00:08]} 61. Rf2 {[%clk 0:00:03]}  Kg5 {[%clk 0:00:07]} 62. Rg2+ {[%clk 0:00:03]}  Kxf5 {[%clk 0:00:07]} 63. Rxg7 {[%clk 0:00:03]}  Re1 {[%clk 0:00:05]} 64. Kd5 {[%clk 0:00:03]}  Kf4 {[%clk 0:00:04]} 65. Kd4 {[%clk 0:00:03]}  Rd1+ {[%clk 0:00:04]} 66. Kc3 {[%clk 0:00:03]}  f5 {[%clk 0:00:05]} 67. Kc2 {[%clk 0:00:03]}  Rd8 {[%clk 0:00:05]} 68. Rg1 {[%clk 0:00:04]}  Ke4 {[%clk 0:00:04]} 69. Re1+ {[%clk 0:00:04]}  Kf4 {[%clk 0:00:05]} 70. Rf1+ {[%clk 0:00:04]}  Kg5 {[%clk 0:00:05]} 71. Rg1+ {[%clk 0:00:05]}  Kf6 {[%clk 0:00:06]} 72. Rf1 {[%clk 0:00:05]}  Ke5 {[%clk 0:00:05]} 73. Re1+ {[%clk 0:00:05]}  Kf6 {[%clk 0:00:05]} 74. Rf1 {[%clk 0:00:06]}  Rd4 {[%clk 0:00:06]} 75. Kc3 {[%clk 0:00:06]}  Rd7 {[%clk 0:00:05]} 76. Kc4 {[%clk 0:00:05]}  Re7 {[%clk 0:00:05]} 77. Kd3 {[%clk 0:00:05]}  Re4 {[%clk 0:00:03]} 78. Rg1 {[%clk 0:00:03]}  Ke5 {[%clk 0:00:04]} 79. Rf1 {[%clk 0:00:02]}  Ra4 {[%clk 0:00:03]} 80. Re1+ {[%clk 0:00:02]}  Kf4 {[%clk 0:00:03]} 81. Rf1+ {[%clk 0:00:02]}  Kg5 {[%clk 0:00:03]} 82. Rg1+ {[%clk 0:00:03]}  Rg4 {[%clk 0:00:03]} 83. Rf1 {[%clk 0:00:03]}  Re4 {[%clk 0:00:04]} 84. Rg1+ {[%clk 0:00:03]}  Kf6 {[%clk 0:00:04]} 85. Rf1 {[%clk 0:00:04]}  Ke6 {[%clk 0:00:04]} 86. Rf2 {[%clk 0:00:02]}  Re5 {[%clk 0:00:04]} 87. Rf1 {[%clk 0:00:03]}  Re4 {[%clk 0:00:03]} 88. Rf2 {[%clk 0:00:03]}  Ke5 {[%clk 0:00:04]} 89. Rf1 {[%clk 0:00:03]}  f4 {[%clk 0:00:04]} 90. Rf2 {[%clk 0:00:03]}  Re3+ {[%clk 0:00:04]} 91. Kd2 {[%clk 0:00:03]}  Ke4 {[%clk 0:00:05]} 92. Rf1 {[%clk 0:00:03]}  f3 {[%clk 0:00:04]} 93. Rh1 {[%clk 0:00:02]}  Re2+ {[%clk 0:00:04]} 94. Kd1 {[%clk 0:00:03]}  Ke3 {[%clk 0:00:05]} 95. Rh8 {[%clk 0:00:03]}  Kf2 {[%clk 0:00:05]} 96. Rh2+ {[%clk 0:00:03]}  Kf1 {[%clk 0:00:06]} 97. Rh1+ {[%clk 0:00:03]}  Kg2 {[%clk 0:00:05]} 98. Rh8 {[%clk 0:00:04]}  Re4 {[%clk 0:00:05]} 99. Rg8+ {[%clk 0:00:04]}  Kf1 {[%clk 0:00:05]} 100. Kd2 {[%clk 0:00:05]}  f2 {[%clk 0:00:04]} 101. Rg7 {[%clk 0:00:05]}  Re5 {[%clk 0:00:05]} 102. Rg8 {[%clk 0:00:05]}  Re6 {[%clk 0:00:04]} 103. Rg7 {[%clk 0:00:05]}  Rd6+ {[%clk 0:00:04]} 104. Kc2 {[%clk 0:00:05]}  Ke1 {[%clk 0:00:05]} 105. Re7+ {[%clk 0:00:05]}  Kf1 {[%clk 0:00:05]} 106. Rg7 {[%clk 0:00:06]}  Rd5 {[%clk 0:00:05]} 107. Kc3 {[%clk 0:00:06]}  Ke2 {[%clk 0:00:05]} 108. Re7+ {[%clk 0:00:06]}  Kf3 {[%clk 0:00:05]} 109. Rf7+ {[%clk 0:00:05]}  Ke3 {[%clk 0:00:05]} 110. Rf8 {[%clk 0:00:04]}  Re5 {[%clk 0:00:04]} 111. Rf7 {[%clk 0:00:01]}  Re4 {[%clk 0:00:04]} 112. Kc2 {[%clk 0:00:01]}  Rf4 {[%clk 0:00:04]} 0-1


[Site "https://www.chess.com"]

[Event "Titled Tuesday Blitz December 14 2021"]
[White "Samsonkin, Artiom"]
[Black "Ibrahimli, Murad"]
[WhiteFideId "13503111"]
[BlackFideId "13410229"]
[WhiteElo "2513"]
[BlackElo "2109"]
[Result "1-0"]
[Round "08"]
[TimeControl "180+1"]
[Date "2021.12.14"]
[WhiteClock "0:00:30"]
[BlackClock "0:00:51"]

1. e4 {[%clk 0:03:00]}  c5 {[%clk 0:03:00]} 2. Nf3 {[%clk 0:03:00]}  d6 {[%clk 0:03:00]} 3. d4 {[%clk 0:03:00]}  cxd4 {[%clk 0:03:01]} 4. Qxd4 {[%clk 0:03:00]}  Nf6 {[%clk 0:03:01]} 5. Be2 {[%clk 0:02:59]}  Nc6 {[%clk 0:02:57]} 6. Qe3 {[%clk 0:03:00]}  g6 {[%clk 0:02:57]} 7. O-O {[%clk 0:02:58]}  Bg7 {[%clk 0:02:57]} 8. c4 {[%clk 0:02:52]}  O-O {[%clk 0:02:57]} 9. Nc3 {[%clk 0:02:52]}  Bg4 {[%clk 0:02:55]} 10. Rd1 {[%clk 0:02:43]}  Bxf3 {[%clk 0:02:53]} 11. Bxf3 {[%clk 0:02:43]}  Nd7 {[%clk 0:02:52]} 12. b3 {[%clk 0:02:43]}  Qb6 {[%clk 0:02:41]} 13. Qd2 {[%clk 0:02:18]}  Qd4 {[%clk 0:02:31]} 14. Bb2 {[%clk 0:02:12]}  Qxd2 {[%clk 0:02:28]} 15. Rxd2 {[%clk 0:02:13]}  Nc5 {[%clk 0:02:27]} 16. Rad1 {[%clk 0:01:57]}  a5 {[%clk 0:02:26]} 17. Nd5 {[%clk 0:01:47]}  Bxb2 {[%clk 0:02:25]} 18. Rxb2 {[%clk 0:01:48]}  Rfd8 {[%clk 0:02:06]} 19. a3 {[%clk 0:01:36]}  e6 {[%clk 0:01:55]} 20. Nc7 {[%clk 0:01:18]}  Rac8 {[%clk 0:01:26]} 21. Nb5 {[%clk 0:01:18]}  Ne5 {[%clk 0:01:26]} 22. Kf1 {[%clk 0:00:42]}  Kf8 {[%clk 0:01:26]} 23. Rxd6 {[%clk 0:00:35]}  Rxd6 {[%clk 0:01:20]} 24. Nxd6 {[%clk 0:00:36]}  Rd8 {[%clk 0:01:20]} 25. Nb5 {[%clk 0:00:37]}  g5 {[%clk 0:00:51]} 26. h3 {[%clk 0:00:31]}  Rd1+ {[%clk 0:00:51]} 27. Bxd1 {[%clk 0:00:30]} 1-0


[Site "https://www.chess.com"]

[Event "Titled Tuesday Blitz December 14 2021"]
[White "Shipov, Sergei"]
[Black "Zubov, Alexander"]
[WhiteFideId "4113624"]
[BlackFideId "14109409"]
[WhiteElo "2741"]
[BlackElo "2685"]
[Result "0-1"]
[Round "08"]
[TimeControl "180+1"]
[Date "2021.12.14"]
[WhiteClock "0:01:31"]
[BlackClock "0:01:06"]

1. d4 {[%clk 0:02:57]}  d5 {[%clk 0:02:57]} 2. c4 {[%clk 0:02:58]}  c6 {[%clk 0:02:57]} 3. Nc3 {[%clk 0:02:58]}  Nf6 {[%clk 0:02:57]} 4. Nf3 {[%clk 0:02:57]}  a6 {[%clk 0:02:57]} 5. h3 {[%clk 0:02:57]}  e6 {[%clk 0:02:46]} 6. e3 {[%clk 0:02:53]}  b5 {[%clk 0:02:44]} 7. c5 {[%clk 0:02:49]}  Nbd7 {[%clk 0:02:39]} 8. Bd3 {[%clk 0:02:27]}  Be7 {[%clk 0:02:24]} 9. O-O {[%clk 0:02:14]}  O-O {[%clk 0:02:14]} 10. Bd2 {[%clk 0:02:11]}  Qc7 {[%clk 0:02:05]} 11. b4 {[%clk 0:02:10]}  e5 {[%clk 0:02:00]} 12. e4 {[%clk 0:02:10]}  dxe4 {[%clk 0:01:37]} 13. Nxe4 {[%clk 0:02:07]}  Nxe4 {[%clk 0:01:36]} 14. Bxe4 {[%clk 0:02:08]}  f5 {[%clk 0:01:23]} 15. Bc2 {[%clk 0:01:58]}  e4 {[%clk 0:01:21]} 16. Bb3+ {[%clk 0:01:51]}  Kh8 {[%clk 0:01:21]} 17. Ng5 {[%clk 0:01:52]}  Bxg5 {[%clk 0:01:11]} 18. Bxg5 {[%clk 0:01:48]}  Nf6 {[%clk 0:01:08]} 19. Bf4 {[%clk 0:01:31]}  Qxf4 {[%clk 0:01:06]} 0-1


[Site "https://www.chess.com"]

[Event "Titled Tuesday Blitz December 14 2021"]
[White "Tanenbaum, Zachary"]
[Black "Tari, Aryan"]
[WhiteFideId "2060850"]
[BlackFideId "1510045"]
[WhiteElo "2168"]
[BlackElo "2656"]
[Result "0-1"]
[Round "08"]
[TimeControl "180+1"]
[Date "2021.12.14"]
[WhiteClock "0:00:02"]
[BlackClock "0:00:08"]

1. e4 {[%clk 0:03:00]}  c6 {[%clk 0:02:58]} 2. d4 {[%clk 0:03:00]}  d5 {[%clk 0:02:59]} 3. exd5 {[%clk 0:03:01]}  cxd5 {[%clk 0:03:00]} 4. Bd3 {[%clk 0:03:01]}  Nc6 {[%clk 0:03:00]} 5. c3 {[%clk 0:03:01]}  Nf6 {[%clk 0:03:00]} 6. Bf4 {[%clk 0:03:01]}  Bg4 {[%clk 0:02:58]} 7. Qb3 {[%clk 0:03:01]}  Qc8 {[%clk 0:02:55]} 8. Nd2 {[%clk 0:03:02]}  e6 {[%clk 0:02:54]} 9. Ngf3 {[%clk 0:03:02]}  Be7 {[%clk 0:02:51]} 10. O-O {[%clk 0:03:02]}  O-O {[%clk 0:02:49]} 11. Qc2 {[%clk 0:03:02]}  Bh5 {[%clk 0:02:47]} 12. Ne5 {[%clk 0:03:02]}  a6 {[%clk 0:02:40]} 13. a4 {[%clk 0:03:01]}  Bg6 {[%clk 0:02:31]} 14. Nxg6 {[%clk 0:03:00]}  hxg6 {[%clk 0:02:32]} 15. Nf3 {[%clk 0:03:01]}  Nh5 {[%clk 0:02:20]} 16. Be3 {[%clk 0:02:59]}  Bd6 {[%clk 0:02:20]} 17. Qd2 {[%clk 0:02:59]}  Qc7 {[%clk 0:02:19]} 18. g3 {[%clk 0:02:59]}  Nf6 {[%clk 0:02:12]} 19. Qe2 {[%clk 0:02:55]}  Rae8 {[%clk 0:02:03]} 20. Rfe1 {[%clk 0:02:47]}  Ng4 {[%clk 0:01:52]} 21. Qf1 {[%clk 0:02:26]}  f5 {[%clk 0:01:34]} 22. Ng5 {[%clk 0:02:22]}  Rf6 {[%clk 0:00:59]} 23. Qh3 {[%clk 0:02:18]}  Nh6 {[%clk 0:01:00]} 24. Nf3 {[%clk 0:02:10]}  f4 {[%clk 0:00:57]} 25. gxf4 {[%clk 0:01:23]}  Bxf4 {[%clk 0:00:58]} 26. Ne5 {[%clk 0:01:18]}  Nxe5 {[%clk 0:00:50]} 27. Bxf4 {[%clk 0:01:17]}  Rxf4 {[%clk 0:00:40]} 28. Rxe5 {[%clk 0:01:16]}  Qf7 {[%clk 0:00:38]} 29. Rg5 {[%clk 0:00:19]}  Nf5 {[%clk 0:00:30]} 30. Rg4 {[%clk 0:00:18]}  Rxg4+ {[%clk 0:00:27]} 31. Qxg4 {[%clk 0:00:19]}  Qf6 {[%clk 0:00:27]} 32. Re1 {[%clk 0:00:18]}  Kf7 {[%clk 0:00:27]} 33. Qf4 {[%clk 0:00:16]}  g5 {[%clk 0:00:26]} 34. Qe5 {[%clk 0:00:16]}  Qxe5 {[%clk 0:00:24]} 35. Rxe5 {[%clk 0:00:17]}  g6 {[%clk 0:00:24]} 36. Kg2 {[%clk 0:00:15]}  Kf6 {[%clk 0:00:25]} 37. Bc2 {[%clk 0:00:13]}  Rc8 {[%clk 0:00:22]} 38. Bb3 {[%clk 0:00:12]}  b5 {[%clk 0:00:19]} 39. axb5 {[%clk 0:00:11]}  axb5 {[%clk 0:00:20]} 40. Re1 {[%clk 0:00:11]}  Ra8 {[%clk 0:00:20]} 41. Kf3 {[%clk 0:00:11]}  Nd6 {[%clk 0:00:20]} 42. Ke2 {[%clk 0:00:10]}  Rh8 {[%clk 0:00:20]} 43. Ra1 {[%clk 0:00:08]}  Rxh2 {[%clk 0:00:19]} 44. Ra6 {[%clk 0:00:08]}  Nc4 {[%clk 0:00:16]} 45. Bxc4 {[%clk 0:00:04]}  bxc4 {[%clk 0:00:17]} 46. Rb6 {[%clk 0:00:03]}  g4 {[%clk 0:00:17]} 47. Kf1 {[%clk 0:00:03]}  Kf5 {[%clk 0:00:15]} 48. b3 {[%clk 0:00:03]}  cxb3 {[%clk 0:00:12]} 49. Rxb3 {[%clk 0:00:04]}  Rh3 {[%clk 0:00:12]} 50. Kg2 {[%clk 0:00:03]}  Rd3 {[%clk 0:00:11]} 51. Kf1 {[%clk 0:00:03]}  g3 {[%clk 0:00:11]} 52. Ke2 {[%clk 0:00:04]}  g2 {[%clk 0:00:10]} 53. Rb1 {[%clk 0:00:04]}  Rxc3 {[%clk 0:00:11]} 54. Rg1 {[%clk 0:00:05]}  Rc4 {[%clk 0:00:10]} 55. Kd3 {[%clk 0:00:05]}  g5 {[%clk 0:00:10]} 56. Rxg2 {[%clk 0:00:05]}  Ra4 {[%clk 0:00:11]} 57. Rh2 {[%clk 0:00:04]}  Ra3+ {[%clk 0:00:10]} 58. Ke2 {[%clk 0:00:04]}  Ke4 {[%clk 0:00:11]} 59. Rh6 {[%clk 0:00:05]}  Ra6 {[%clk 0:00:11]} 60. Rg6 {[%clk 0:00:04]}  Kf5 {[%clk 0:00:11]} 61. Rg7 {[%clk 0:00:05]}  g4 {[%clk 0:00:12]} 62. Rg8 {[%clk 0:00:05]}  Ra2+ {[%clk 0:00:11]} 63. Ke3 {[%clk 0:00:05]}  Ra3+ {[%clk 0:00:12]} 64. Ke2 {[%clk 0:00:06]}  Kf4 {[%clk 0:00:10]} 65. Rg6 {[%clk 0:00:05]}  Ra6 {[%clk 0:00:10]} 66. Rg8 {[%clk 0:00:05]}  Ra4 {[%clk 0:00:08]} 67. Rg6 {[%clk 0:00:04]}  Rxd4 {[%clk 0:00:08]} 68. Rxe6 {[%clk 0:00:02]}  Re4+ {[%clk 0:00:08]} 69. Rxe4+ {[%clk 0:00:02]}  Kxe4 {[%clk 0:00:06]} 70. Ke1 {[%clk 0:00:01]}  Kf3 {[%clk 0:00:06]} 71. Kf1 {[%clk 0:00:02]}  d4 {[%clk 0:00:06]} 72. Ke1 {[%clk 0:00:02]}  d3 {[%clk 0:00:07]} 73. Kd2 {[%clk 0:00:01]}  Kxf2 {[%clk 0:00:07]} 74. Kxd3 {[%clk 0:00:02]}  g3 {[%clk 0:00:08]} 0-1


[Site "https://www.chess.com"]

[Event "Titled Tuesday Blitz December 14 2021"]
[White "Tsvetkov, Andrey"]
[Black "Sarana, Alexey"]
[WhiteFideId "34139360"]
[BlackFideId "24133795"]
[WhiteElo "2280"]
[BlackElo "2672"]
[Result "0-1"]
[Round "08"]
[TimeControl "180+1"]
[Date "2021.12.14"]
[WhiteClock "0:00:02"]
[BlackClock "0:00:06"]

1. d4 {[%clk 0:03:00]}  Nf6 {[%clk 0:02:57]} 2. c4 {[%clk 0:03:00]}  e6 {[%clk 0:02:57]} 3. Nc3 {[%clk 0:03:01]}  Bb4 {[%clk 0:02:57]} 4. e3 {[%clk 0:03:01]}  O-O {[%clk 0:02:57]} 5. Nf3 {[%clk 0:02:59]}  d5 {[%clk 0:02:52]} 6. Bd2 {[%clk 0:02:57]}  Re8 {[%clk 0:02:51]} 7. cxd5 {[%clk 0:02:40]}  exd5 {[%clk 0:02:51]} 8. Bd3 {[%clk 0:02:40]}  Nbd7 {[%clk 0:02:49]} 9. Rc1 {[%clk 0:02:39]}  c6 {[%clk 0:02:48]} 10. a3 {[%clk 0:02:31]}  Bd6 {[%clk 0:02:48]} 11. b4 {[%clk 0:02:31]}  b5 {[%clk 0:02:44]} 12. a4 {[%clk 0:02:24]}  a6 {[%clk 0:02:40]} 13. Na2 {[%clk 0:02:09]}  Nb6 {[%clk 0:02:22]} 14. Rxc6 {[%clk 0:01:56]}  Nxa4 {[%clk 0:02:22]} 15. Qc1 {[%clk 0:01:32]}  Bg4 {[%clk 0:02:12]} 16. Ne5 {[%clk 0:01:16]}  Bxe5 {[%clk 0:02:09]} 17. dxe5 {[%clk 0:01:17]}  Rxe5 {[%clk 0:02:09]} 18. O-O {[%clk 0:01:18]}  Bf5 {[%clk 0:02:07]} 19. Bxf5 {[%clk 0:00:50]}  Rxf5 {[%clk 0:02:07]} 20. Nc3 {[%clk 0:00:51]}  Nb6 {[%clk 0:02:01]} 21. Ne2 {[%clk 0:00:45]}  Nc4 {[%clk 0:02:01]} 22. Nd4 {[%clk 0:00:44]}  Rh5 {[%clk 0:02:00]} 23. Be1 {[%clk 0:00:38]}  Qd7 {[%clk 0:01:56]} 24. f3 {[%clk 0:00:33]}  Re5 {[%clk 0:01:49]} 25. Bg3 {[%clk 0:00:31]}  Rxe3 {[%clk 0:01:39]} 26. Rxc4 {[%clk 0:00:30]}  dxc4 {[%clk 0:01:32]} 27. Qxe3 {[%clk 0:00:30]}  Re8 {[%clk 0:01:33]} 28. Qf4 {[%clk 0:00:29]}  Nd5 {[%clk 0:01:14]} 29. Qd6 {[%clk 0:00:29]}  Qb7 {[%clk 0:00:48]} 30. Re1 {[%clk 0:00:29]}  Rc8 {[%clk 0:00:35]} 31. Nc6 {[%clk 0:00:26]}  h6 {[%clk 0:00:27]} 32. Qxd5 {[%clk 0:00:14]}  Qxc6 {[%clk 0:00:27]} 33. Qxc6 {[%clk 0:00:14]}  Rxc6 {[%clk 0:00:28]} 34. Bf2 {[%clk 0:00:15]}  c3 {[%clk 0:00:25]} 35. Kf1 {[%clk 0:00:14]}  Rc4 {[%clk 0:00:25]} 36. Rc1 {[%clk 0:00:12]}  Rxb4 {[%clk 0:00:22]} 37. Rxc3 {[%clk 0:00:12]}  Rb1+ {[%clk 0:00:22]} 38. Ke2 {[%clk 0:00:13]}  Rb2+ {[%clk 0:00:23]} 39. Ke3 {[%clk 0:00:13]}  a5 {[%clk 0:00:23]} 40. Rc8+ {[%clk 0:00:10]}  Kh7 {[%clk 0:00:23]} 41. Ra8 {[%clk 0:00:10]}  a4 {[%clk 0:00:23]} 42. Ra5 {[%clk 0:00:11]}  g5 {[%clk 0:00:21]} 43. g4 {[%clk 0:00:11]}  Rb3+ {[%clk 0:00:17]} 44. Ke4 {[%clk 0:00:11]}  a3 {[%clk 0:00:16]} 45. Bc5 {[%clk 0:00:09]}  b4 {[%clk 0:00:16]} 46. Ra4 {[%clk 0:00:08]}  Rc3 {[%clk 0:00:12]} 47. Bxb4 {[%clk 0:00:07]}  Rc4+ {[%clk 0:00:13]} 48. Kd3 {[%clk 0:00:08]}  Rf4 {[%clk 0:00:13]} 49. Kc3 {[%clk 0:00:03]}  Rxf3+ {[%clk 0:00:12]} 50. Kc4 {[%clk 0:00:04]}  Rf4+ {[%clk 0:00:12]} 51. Kb5 {[%clk 0:00:04]}  Rxg4 {[%clk 0:00:12]} 52. Rxa3 {[%clk 0:00:05]}  Rg2 {[%clk 0:00:11]} 53. Bd6 {[%clk 0:00:05]}  f5 {[%clk 0:00:12]} 54. Kc4 {[%clk 0:00:05]}  f4 {[%clk 0:00:12]} 55. Kd4 {[%clk 0:00:05]}  Rd2+ {[%clk 0:00:07]} 56. Ke5 {[%clk 0:00:05]}  Kg6 {[%clk 0:00:07]} 57. h3 {[%clk 0:00:04]}  Re2+ {[%clk 0:00:07]} 58. Kd5 {[%clk 0:00:04]}  Kf5 {[%clk 0:00:06]} 59. Ra8 {[%clk 0:00:05]}  Rd2+ {[%clk 0:00:06]} 60. Kc5 {[%clk 0:00:06]}  Rh2 {[%clk 0:00:06]} 61. Kd5 {[%clk 0:00:04]}  Rxh3 {[%clk 0:00:06]} 62. Rf8+ {[%clk 0:00:04]}  Kg4 {[%clk 0:00:06]} 63. Bc5 {[%clk 0:00:04]}  Rh1 {[%clk 0:00:06]} 64. Bb4 {[%clk 0:00:04]}  h5 {[%clk 0:00:05]} 65. Ke4 {[%clk 0:00:04]}  h4 {[%clk 0:00:05]} 66. Rg8 {[%clk 0:00:03]}  h3 {[%clk 0:00:06]} 67. Bd2 {[%clk 0:00:04]}  Rf1 {[%clk 0:00:05]} 68. Rh8 {[%clk 0:00:03]}  Rf2 {[%clk 0:00:05]} 69. Bc3 {[%clk 0:00:03]}  Re2+ {[%clk 0:00:06]} 70. Kd3 {[%clk 0:00:04]}  Re3+ {[%clk 0:00:06]} 71. Kd2 {[%clk 0:00:04]}  Kg3 {[%clk 0:00:06]} 72. Bf6 {[%clk 0:00:04]}  g4 {[%clk 0:00:06]} 73. Rf8 {[%clk 0:00:04]}  h2 {[%clk 0:00:05]} 74. Bg5 {[%clk 0:00:04]}  Rf3 {[%clk 0:00:05]} 75. Rh8 {[%clk 0:00:04]}  Kg2 {[%clk 0:00:05]} 76. Ke2 {[%clk 0:00:02]}  Rf2+ {[%clk 0:00:06]} 77. Kd3 {[%clk 0:00:02]}  g3 {[%clk 0:00:06]} 0-1


[Site "https://www.chess.com"]